bitfinex-derivatives/quotes_BTCF0:USTF0_20251217
["timestamp","ask_amount","ask_price","bid_price","bid_amount"]
[1765949482438,1.14179556,86472.0,86471.0,1.05980347]
[1765949482846,0.41311556,86472.0,86471.0,1.05980347]
[1765949483047,0.78938556,86472.0,86471.0,1.05980347]
[1765949483254,0.72836,86472.0,86471.0,1.05980347]
[1765949483455,0.78938556,86472.0,86471.0,1.05980347]
[1765949483653,0.72836,86472.0,86471.0,1.05980347]
[1765949484457,1.52900851,86482.0,86471.0,1.05980347]
[1765949484458,0.08212851,86485.0,86484.0,0.69883]
[1765949484647,0.35226347,86488.0,86487.0,0.69883]
[1765949484847,1.08062347,86488.0,86487.0,0.69883]
[1765949486058,1.08062347,86488.0,86487.0,0.70083]
[1765949487147,1.08062347,86488.0,86487.0,0.69983]
[1765949487656,0.75149374,86498.0,86497.0,0.69883]
[1765949487851,1.47965355,86498.0,86497.0,1.05963]
[1765949488051,1.41793221,86498.0,86497.0,1.05963]
[1765949488943,0.06172134,86499.0,86497.0,1.05963]
[1765949489149,0.00017309,86506.0,86500.0,0.69883]
[1765949489150,0.32916,86501.0,86500.0,0.69883]
[1765949489348,1.01662,86501.0,86500.0,0.69883]
[1765949490454,0.68746,86498.0,86497.0,0.7216]
[1765949490662,0.68746,86498.0,86497.0,0.3608]
[1765949491955,0.89493,86490.0,86489.0,0.00017347]
[1765949492158,1.62313,86490.0,86489.0,0.00017347]
[1765949493156,2.06621502,86490.0,86489.0,0.00017347]
[1765949493361,1.98493,86490.0,86489.0,0.00017347]
[1765949493951,1.98593,86490.0,86489.0,0.00017347]
[1765949494151,1.62513,86490.0,86489.0,0.00017347]
[1765949494561,1.62413,86490.0,86489.0,0.00017347]
[1765949494762,1.62513,86490.0,86489.0,0.00017347]
[1765949494961,1.62613,86490.0,86489.0,0.00017347]
[1765949495362,1.62513,86490.0,86489.0,0.00017347]
[1765949496656,1.62413,86490.0,86489.0,0.00017347]
[1765949497155,1.62513,86490.0,86489.0,0.00017347]
[1765949498558,1.62413,86490.0,86489.0,0.00017347]
[1765949498864,1.62513,86490.0,86489.0,0.00017347]
[1765949500164,1.62413,86490.0,86489.0,0.00017347]
[1765949500362,1.62513,86490.0,86489.0,0.00017347]
[1765949500969,1.62413,86490.0,86489.0,0.00017347]
[1765949501166,1.62513,86490.0,86489.0,0.00017347]
[1765949502063,0.67167,86478.0,86477.0,0.3608]
[1765949502264,1.39951,86478.0,86477.0,0.3608]
[1765949502561,1.46122243,86478.0,86477.0,0.3608]
[1765949503362,1.39951,86478.0,86477.0,0.3608]
[1765949503763,1.39951,86478.0,86477.0,1.02129]
[1765949504666,0.72784,86478.0,86477.0,1.02129]
[1765949504868,0.39021243,86482.0,86481.0,0.66049]
[1765949505055,1.0563,86482.0,86481.0,0.66049]
[1765949505669,1.08527422,86482.0,86481.0,0.66049]
[1765949506757,0.32867347,86486.0,86485.0,0.66049]
[1765949506958,1.05635347,86486.0,86485.0,0.3608]
[1765949508468,0.67167,86482.0,86481.0,0.001]
[1765949508869,0.73339949,86482.0,86481.0,0.001]
[1765949509067,0.67167,86482.0,86481.0,0.001]
[1765949509273,0.67167,86478.0,86477.0,0.3608]
[1765949509573,1.39935,86478.0,86477.0,0.3608]
[1765949514774,1.40035,86478.0,86477.0,0.3608]
[1765949515073,1.39935,86478.0,86477.0,0.3608]
[1765949515273,1.40035,86478.0,86477.0,0.3608]
[1765949515771,0.67167,86470.0,86458.0,0.00231328]
[1765949515976,1.39911,86470.0,86458.0,0.00231328]
[1765949516274,0.67167,86459.0,86458.0,0.00231328]
[1765949516575,1.75999,86459.0,86458.0,0.00231328]
[1765949516867,1.82167584,86459.0,86458.0,0.00231328]
[1765949517270,1.75999,86459.0,86458.0,0.00231328]
[1765949517968,1.76099,86459.0,86458.0,0.66280328]
[1765949518472,1.76199,86459.0,86458.0,0.66280328]
[1765949518674,0.67367,86459.0,86458.0,0.66280328]
[1765949518859,0.72844,86459.0,86458.0,0.66280328]
[1765949519064,0.72944,86459.0,86458.0,0.66280328]
[1765949519260,0.72844,86459.0,86458.0,0.66280328]
[1765949520071,1.05694,86459.0,86458.0,0.66380328]
[1765949520576,0.72844,86459.0,86458.0,0.66380328]
[1765949521066,0.72744,86459.0,86458.0,0.66380328]
[1765949521267,0.72744,86459.0,86458.0,0.66480328]
[1765949521977,0.72744,86459.0,86458.0,0.66380328]
[1765949522172,0.72744,86459.0,86458.0,0.66480328]
[1765949527683,0.00017347,86467.0,86466.0,0.70618]
[1765949527880,0.00017347,86467.0,86466.0,1.0785477]
[1765949528880,0.72724,86469.0,86468.0,0.70618]
[1765949529283,0.70194011,86469.0,86468.0,0.70618]
[1765949530381,0.70194011,86469.0,86468.0,1.10618]
[1765949530778,0.70194011,86469.0,86468.0,1.10818]
[1765949531385,0.00017347,86477.0,86476.0,0.7177464]
[1765949531684,0.00017347,86477.0,86476.0,1.06698]
[1765949532480,0.72172,86487.0,86486.0,0.70618]
[1765949533582,1.05866,86487.0,86486.0,0.70618]
[1765949535777,1.05866,86487.0,86486.0,0.35526]
[1765949535973,0.68367,86477.0,86476.0,0.3608]
[1765949536675,0.68367,86477.0,86476.0,0.71606]
[1765949536988,0.68367,86477.0,86476.0,1.06698]
[1765949537290,0.68367,86477.0,86476.0,1.06798]
[1765949537696,0.68367,86477.0,86476.0,1.06698]
[1765949537882,0.68367,86477.0,86476.0,0.3618]
[1765949538083,1.04447,86477.0,86476.0,0.70718]
[1765949538281,1.41071,86477.0,86476.0,0.70718]
[1765949538479,1.41071,86477.0,86476.0,0.70618]
[1765949539488,0.68367,86469.0,86468.0,0.35543347]
[1765949539689,0.68367,86469.0,86468.0,0.70635347]
[1765949539890,1.41088309,86477.0,86476.0,0.70618]
[1765949541287,0.72721309,86477.0,86476.0,0.70618]
[1765949541894,0.00017309,86477.0,86476.0,0.70618]
[1765949542088,0.74535584,86503.0,86502.0,0.35526]
[1765949542391,0.93872592,86503.0,86502.0,0.35526]
[1765949542590,0.93872592,86503.0,86502.0,0.70618]
[1765949542591,0.71325567,86503.0,86502.0,0.70618]
[1765949542894,1.44021567,86503.0,86502.0,0.70618]
[1765949543290,1.44221567,86503.0,86502.0,0.70618]
[1765949543887,1.44421567,86503.0,86502.0,0.70618]
[1765949544195,0.71725567,86503.0,86502.0,0.70618]
[1765949544400,1.44421567,86503.0,86502.0,1.06698]
[1765949545296,0.73096,86503.0,86502.0,1.06698]
[1765949545693,0.004,86503.0,86502.0,1.06698]
[1765949546093,0.68767,86503.0,86502.0,1.06698]
[1765949546801,0.004,86503.0,86502.0,1.06698]
[1765949547192,0.87836,86512.0,86511.0,0.70618]
[1765949547502,0.72684,86514.0,86513.0,0.70618]
[1765949547897,0.87836,86528.0,86527.0,0.70618]
[1765949548205,1.63467465,86528.0,86527.0,0.70618]
[1765949549799,1.44290465,86528.0,86527.0,0.70618]
[1765949550000,1.41355,86528.0,86527.0,1.06698]
[1765949550303,1.61224,86528.0,86527.0,1.06698]
[1765949550496,1.61224,86528.0,86527.0,0.3608]
[1765949550692,0.87836,86520.0,86519.0,0.70635336]
[1765949551805,0.88136,86520.0,86519.0,0.70635336]
[1765949552003,0.34194,86520.0,86519.0,0.70635336]
[1765949552402,0.88336,86520.0,86519.0,0.70635336]
[1765949552996,1.61016,86520.0,86519.0,0.70635336]
[1765949554407,1.61016,86520.0,86519.0,0.35543336]
[1765949554604,1.61016,86520.0,86519.0,0.00017336]
[1765949558103,1.61016,86520.0,86519.0,0.68019336]
[1765949558312,1.08715,86520.0,86519.0,0.68019336]
[1765949558715,1.28175,86520.0,86519.0,0.68019336]
[1765949559006,1.08715,86520.0,86519.0,0.68019336]
[1765949559209,0.7314,86520.0,86519.0,0.68019336]
[1765949559398,1.08711,86520.0,86519.0,0.68019336]
[1765949560303,0.7314,86520.0,86519.0,0.68019336]
[1765949561096,1.28171,86520.0,86519.0,0.68019336]
[1765949561609,1.27871,86520.0,86519.0,0.68019336]
[1765949562015,1.08211,86520.0,86519.0,0.68019336]
[1765949563101,0.7264,86520.0,86519.0,0.68019336]
[1765949564808,0.71683114,86538.0,86537.0,0.66083]
[1765949565015,0.90912,86520.0,86519.0,0.66100336]
[1765949565803,0.90912,86520.0,86519.0,0.00017336]
[1765949566003,0.90912,86520.0,86519.0,0.32602336]
[1765949567309,0.90912,86520.0,86519.0,0.66100336]
[1765949567709,0.90912,86520.0,86519.0,0.00017336]
[1765949568506,0.90912,86520.0,86519.0,0.32602336]
[1765949569814,0.90912,86520.0,86519.0,0.00017336]
[1765949570217,0.35571,86520.0,86519.0,0.66100336]
[1765949570512,0.74307562,86524.0,86523.0,0.66083]
[1765949570715,1.44064,86524.0,86523.0,0.66083]
[1765949571615,1.08183,86524.0,86523.0,0.66083]
[1765949571808,0.72612,86524.0,86523.0,0.66083]
[1765949572004,0.06168584,86534.0,86533.0,0.32585]
[1765949572209,1.50228584,86534.0,86533.0,0.66083]
[1765949572407,0.71452,86534.0,86533.0,0.66083]
[1765949572618,0.00231114,86538.0,86537.0,0.66083]
[1765949573009,0.72608,86541.0,86540.0,0.66083]
[1765949573213,1.08179,86541.0,86540.0,1.02163]
[1765949574409,0.71452,86541.0,86540.0,1.02163]
[1765949574812,0.71652,86541.0,86540.0,0.3608]
[1765949575419,0.71452,86535.0,86534.0,0.95]
[1765949575722,0.35971,86541.0,86540.0,0.66083]
[1765949575920,1.08575,86541.0,86540.0,0.66083]
[1765949576619,0.71452,86535.0,86534.0,1.27585]
[1765949578319,0.71552,86535.0,86534.0,1.27585]
[1765949579121,0.71652,86535.0,86534.0,1.27585]
[1765949579821,0.71652,86535.0,86534.0,0.95]
[1765949580823,0.71452,86531.0,86530.0,0.3608]
[1765949581121,1.44048,86531.0,86530.0,0.3608]
[1765949581917,1.44148,86531.0,86530.0,0.3608]
[1765949582117,1.44248,86531.0,86530.0,0.3608]
[1765949582419,1.44248,86531.0,86530.0,0.68665]
[1765949582621,1.44248,86531.0,86530.0,1.02163]
[1765949582816,0.71652,86531.0,86530.0,1.02163]
[1765949583021,1.44248,86531.0,86530.0,1.02163]
[1765949583725,1.44248,86531.0,86530.0,0.68665]
[1765949586928,1.44148,86531.0,86530.0,0.68665]
[1765949587228,1.44148,86531.0,86530.0,0.68765]
[1765949587430,1.44048,86531.0,86530.0,0.68865]
[1765949588430,1.44048,86531.0,86530.0,1.01435]
[1765949590522,1.44048,86531.0,86530.0,0.3628]
[1765949591125,1.44048,86531.0,86530.0,0.3618]
[1765949591328,1.44048,86531.0,86530.0,0.3628]
[1765949591716,1.44048,86531.0,86530.0,0.3618]
[1765949591920,1.44048,86531.0,86530.0,0.3628]
[1765949592430,1.41048,86531.0,86530.0,0.3628]
[1765949595035,1.41048,86531.0,86530.0,0.002]
[1765949596530,1.41048,86531.0,86522.0,0.3608]
[1765949596730,0.67131,86523.0,86522.0,0.3608]
[1765949597029,1.39727,86523.0,86522.0,0.3608]
[1765949598124,1.39727,86523.0,86522.0,0.3628]
[1765949599227,1.39727,86523.0,86522.0,0.71485]
[1765949599432,1.39727,86523.0,86522.0,1.04055]
[1765949600132,1.42661479,86523.0,86522.0,0.3628]
[1765949600330,1.41661479,86523.0,86522.0,0.3628]
[1765949600731,1.41661479,86523.0,86522.0,0.002]
[1765949601641,1.41661479,86523.0,86522.0,0.001]
[1765949602429,0.87327,86520.0,86519.0,0.00017336]
[1765949603134,0.87327,86520.0,86519.0,0.35222336]
[1765949605139,0.87327,86520.0,86519.0,0.67792336]
[1765949606541,0.87327,86520.0,86519.0,0.67892336]
[1765949606846,0.87327,86520.0,86519.0,0.67992336]
[1765949610244,0.67131,86520.0,86519.0,0.67992336]
[1765949610544,1.39727,86520.0,86519.0,0.67992336]
[1765949611939,1.39727,86520.0,86519.0,0.67892336]
[1765949612145,1.39727,86520.0,86519.0,0.67992336]
[1765949612345,1.59923,86520.0,86519.0,0.67992336]
[1765949612537,1.59923,86520.0,86519.0,0.35422336]
[1765949612732,1.59923,86520.0,86519.0,0.35322336]
[1765949612943,1.59923,86520.0,86519.0,0.35422336]
[1765949613336,1.59923,86520.0,86519.0,0.67992336]
[1765949618048,0.87327,86520.0,86519.0,0.67992336]
[1765949618346,1.05185,86520.0,86519.0,0.67992336]
[1765949618551,0.72596,86520.0,86519.0,0.67992336]
[1765949619141,0.02934416,86525.0,86524.0,0.67348]
[1765949619349,0.06179438,86537.0,86535.0,0.6734784]
[1765949619652,0.40005438,86542.0,86541.0,0.66192]
[1765949619850,0.72802438,86542.0,86541.0,0.66192]
[1765949620249,0.66623,86542.0,86541.0,0.33774]
[1765949620452,0.66623,86537.0,86536.0,1.02272]
[1765949621345,0.66623,86537.0,86536.0,0.3608]
[1765949622240,0.66623,86537.0,86536.0,1.02272]
[1765949622441,0.33826,86540.0,86539.0,0.66192]
[1765949622646,0.72588,86540.0,86539.0,0.66192]
[1765949622846,0.66623,86525.0,86524.0,1.02272]
[1765949625045,0.66623,86525.0,86524.0,1.02472]
[1765949625553,0.66623,86525.0,86524.0,1.02372]
[1765949625748,0.66623,86525.0,86524.0,0.002]
[1765949626255,0.67752728,86525.0,86524.0,0.002]
[1765949626442,0.67752728,86525.0,86524.0,0.001]
[1765949626646,0.67752728,86525.0,86524.0,0.002]
[1765949627157,0.86296,86520.0,86510.0,0.3608]
[1765949627350,1.65059965,86520.0,86510.0,0.3608]
[1765949627656,1.5888,86520.0,86510.0,0.3608]
[1765949628049,0.66623,86499.0,86498.0,0.66423221]
[1765949628244,1.5888,86499.0,86498.0,0.66423221]
[1765949629255,1.39207,86499.0,86498.0,0.66623221]
[1765949629948,1.5888,86499.0,86498.0,0.66623221]
[1765949630861,1.5888,86499.0,86498.0,0.66423221]
[1765949631063,1.5888,86499.0,86498.0,0.66623221]
[1765949632656,1.39207,86499.0,86498.0,0.66623221]
[1765949632860,1.5888,86499.0,86498.0,0.66623221]
[1765949636765,1.5888,86499.0,86498.0,0.34205221]
[1765949637362,1.5888,86499.0,86498.0,0.66623221]
[1765949637563,1.5888,86499.0,86498.0,0.34205221]
[1765949638066,1.5888,86499.0,86498.0,0.00431221]
[1765949644959,0.69272,86506.0,86505.0,0.68044]
[1765949645159,1.41868,86506.0,86505.0,0.68044]
[1765949646463,1.41868,86506.0,86505.0,0.68144]
[1765949647971,1.41868,86506.0,86505.0,0.68044]
[1765949648267,1.41868,86506.0,86505.0,0.68244]
[1765949648866,0.69272,86499.0,86498.0,0.00231221]
[1765949649165,0.69272,86468.0,86467.0,0.68044]
[1765949649366,0.69272,86468.0,86455.0,0.0115691]
[1765949649367,0.69272,86467.0,86466.0,0.3608]
[1765949649763,0.69272,86459.0,86455.0,0.3608]
[1765949649963,1.41878289,86459.0,86455.0,0.3608]
[1765949650163,1.41878289,86459.0,86450.0,0.00017348]
[1765949650470,0.69272,86451.0,86450.0,0.00017348]
[1765949650657,1.41868,86451.0,86450.0,0.00017348]
[1765949651669,1.41868,86451.0,86450.0,0.00217348]
[1765949652663,1.41868,86451.0,86450.0,0.00417348]
[1765949655972,1.41968,86451.0,86450.0,0.00217348]
[1765949656769,1.41868,86451.0,86450.0,0.00217348]
[1765949657176,1.41968,86451.0,86450.0,0.00017348]
[1765949657571,0.69372,86451.0,86450.0,0.68061348]
[1765949657781,1.41984,86451.0,86450.0,0.68061348]
[1765949657976,0.001,86451.0,86450.0,0.68061348]
[1765949658176,0.4038,86451.0,86450.0,0.68061348]
[1765949658770,1.09652,86451.0,86450.0,0.68061348]
[1765949659680,1.09652,86451.0,86450.0,0.00017348]
[1765949659879,1.09652,86451.0,86450.0,0.68061348]
[1765949666284,1.09652,86451.0,86450.0,0.32632348]
[1765949666685,1.09652,86451.0,86450.0,0.00017348]
[1765949667692,1.09652,86451.0,86450.0,0.32632348]
[1765949667984,1.09652,86451.0,86450.0,0.00017348]
[1765949668386,1.09652,86451.0,86450.0,0.32632348]
[1765949669683,1.09652,86451.0,86450.0,0.68061348]
[1765949670278,1.09652,86451.0,86450.0,0.00017348]
[1765949674688,0.69372,86451.0,86450.0,0.66882348]
[1765949674888,1.41996,86451.0,86450.0,0.66882348]
[1765949676980,0.001,86451.0,86450.0,0.66882348]
[1765949677186,0.72724,86451.0,86450.0,0.84867348]
[1765949677386,0.72724,86451.0,86450.0,1.20947348]
[1765949677881,0.001,86451.0,86450.0,1.20947348]
[1765949679999,1.4131,86456.0,86455.0,0.69211]
[1765949681185,1.4131,86456.0,86455.0,0.69411]
[1765949681884,0.02886082,86458.0,86457.0,0.69211]
[1765949682090,0.66558289,86459.0,86458.0,0.69211]
[1765949682682,0.77934149,86467.0,86466.0,0.69211]
[1765949682886,1.53516557,86467.0,86466.0,1.05291]
[1765949683890,1.53616557,86467.0,86466.0,1.05291]
[1765949684296,1.53516557,86467.0,86466.0,1.05291]
[1765949684592,1.53516557,86467.0,86466.0,1.05391]
[1765949684895,1.53516557,86467.0,86466.0,0.3618]
[1765949685094,1.53516557,86467.0,86466.0,0.3628]
[1765949685292,1.53516557,86467.0,86466.0,1.05491]
[1765949686387,1.53516557,86467.0,86466.0,0.71027]
[1765949688108,1.53516557,86467.0,86466.0,0.3628]
[1765949689700,1.53516557,86467.0,86466.0,0.71027]
[1765949690091,1.53516557,86467.0,86466.0,1.05491]
[1765949691603,1.53516557,86467.0,86466.0,0.3628]
[1765949691794,1.53516557,86467.0,86466.0,0.71027]
[1765949692412,1.53516557,86467.0,86466.0,0.002]
[1765949692991,1.10205756,86467.0,86466.0,1.05491]
[1765949694506,0.71665756,86467.0,86466.0,1.05491]
[1765949694806,1.44273756,86467.0,86466.0,1.05491]
[1765949695206,1.44273756,86467.0,86466.0,0.71027]
[1765949695905,1.44273756,86467.0,86466.0,0.002]
[1765949696304,0.68686,86451.0,86450.0,0.70844348]
[1765949696609,1.41294,86451.0,86450.0,1.05308348]
[1765949696806,1.41294,86451.0,86450.0,0.70844348]
[1765949697713,1.41294,86451.0,86450.0,0.36097348]
[1765949698707,1.41294,86451.0,86450.0,0.36397348]
[1765949698906,1.41294,86451.0,86450.0,0.36697348]
[1765949699505,1.41294,86451.0,86450.0,0.00617348]
[1765949702199,0.68686,86451.0,86450.0,0.69828348]
[1765949702404,0.02832233,86452.0,86451.0,0.69211]
[1765949702710,0.91097184,86460.0,86459.0,0.69211]
[1765949702908,1.63709184,86460.0,86459.0,1.05291]
[1765949703212,1.41298,86460.0,86459.0,1.05291]
[1765949703603,0.09429741,86468.0,86461.0,0.69211]
[1765949703604,0.02857034,86462.0,86461.0,0.69211]
[1765949703799,0.02857034,86462.0,86459.0,0.3608]
[1765949703800,0.68686,86460.0,86459.0,0.3608]
[1765949704008,0.68686,86460.0,86459.0,0.3618]
[1765949704204,0.68686,86460.0,86459.0,0.001]
[1765949704800,1.08692,86462.0,86451.0,0.003]
[1765949704801,0.66388,86452.0,86451.0,0.003]
[1765949705108,0.66388,86451.0,86450.0,0.00017348]
[1765949707006,0.66388,86451.0,86450.0,0.00217348]
[1765949707910,0.66388,86451.0,86450.0,0.00517348]
[1765949708513,0.66388,86451.0,86450.0,3.48e-06]
[1765949708707,0.65662,86434.0,86433.0,0.3608]
[1765949709015,1.38274,86434.0,86433.0,0.3608]
[1765949710115,1.38274,86434.0,86433.0,0.3648]
[1765949710514,1.4761014,86434.0,86433.0,0.3648]
[1765949710902,1.4761014,86434.0,86433.0,0.3698]
[1765949711214,0.32978,86434.0,86433.0,1.05531]
[1765949711410,0.32995348,86442.0,86441.0,0.68551]
[1765949711607,1.0842976,86442.0,86441.0,1.04631]
[1765949711808,0.3581776,86442.0,86441.0,1.04631]
[1765949712210,1.0842976,86442.0,86441.0,1.04631]
[1765949712714,1.0842976,86442.0,86441.0,1.04931]
[1765949713019,1.0842976,86442.0,86441.0,1.05231]
[1765949713321,0.00017348,86442.0,86441.0,1.05231]
[1765949715525,0.65679348,86442.0,86441.0,1.05231]
[1765949715916,0.00017348,86442.0,86441.0,1.05231]
[1765949716317,0.32995348,86442.0,86441.0,1.05231]
[1765949716512,0.65679348,86442.0,86441.0,1.05231]
[1765949716712,0.65679348,86442.0,86441.0,0.3668]
[1765949717619,0.65679348,86442.0,86441.0,1.05231]
[1765949719322,0.65679348,86442.0,86441.0,0.3668]
[1765949724324,0.65679348,86442.0,86441.0,0.70117]
[1765949724525,0.65679348,86442.0,86441.0,1.05231]
[1765949724826,0.65679348,86442.0,86441.0,0.3668]
[1765949725530,1.38295348,86442.0,86441.0,0.3668]
[1765949727820,1.38295348,86442.0,86441.0,1.05231]
[1765949728019,0.65679348,86442.0,86441.0,1.05231]
[1765949728222,1.38295348,86442.0,86441.0,1.05231]
[1765949728731,0.65679348,86442.0,86441.0,1.05231]
[1765949728925,1.38295348,86442.0,86441.0,1.05231]
[1765949730022,0.72633348,86442.0,86441.0,1.05231]
[1765949732624,1.38295348,86442.0,86441.0,0.3668]
[1765949733328,1.38295348,86442.0,86441.0,0.70117]
[1765949736337,1.38295348,86442.0,86441.0,1.05231]
[1765949736729,0.00017348,86442.0,86441.0,1.05231]
[1765949736929,0.72629348,86442.0,86441.0,1.05231]
[1765949737127,0.00017348,86442.0,86441.0,1.05231]
[1765949743547,0.67175348,86442.0,86441.0,1.05231]
[1765949744447,0.00017348,86442.0,86441.0,1.05231]
[1765949745543,0.34734348,86442.0,86441.0,1.05231]
[1765949745744,0.67175348,86442.0,86441.0,1.05231]
[1765949747852,0.00017348,86442.0,86441.0,1.05231]
[1765949748543,0.67175348,86442.0,86441.0,1.05231]
[1765949748742,0.34734348,86442.0,86441.0,1.05231]
[1765949748945,0.67175348,86442.0,86441.0,1.05231]
[1765949750749,0.00017348,86442.0,86441.0,1.05231]
[1765949751054,0.67175348,86442.0,86441.0,1.05231]
[1765949753749,0.34734348,86442.0,86441.0,1.05231]
[1765949753950,0.00017348,86442.0,86441.0,1.05231]
[1765949754150,0.67175348,86442.0,86441.0,1.05231]
[1765949754348,0.87932348,86442.0,86441.0,1.05231]
[1765949754653,0.87932348,86442.0,86441.0,0.3668]
[1765949756344,0.67158,86435.0,86434.0,0.3608]
[1765949756542,1.39758,86435.0,86434.0,0.3608]
[1765949756945,0.67158,86413.0,86403.0,0.08217592]
[1765949757144,0.67158,86413.0,86387.0,0.21339]
[1765949757145,0.67158,86393.0,86392.0,0.66914]
[1765949757352,1.7585,86393.0,86392.0,0.66914]
[1765949757557,1.7545,86393.0,86392.0,0.66914]
[1765949757751,0.67158,86383.0,86382.0,0.88253]
[1765949758143,0.67168594,86383.0,86382.0,0.88253]
[1765949758549,0.66868594,86383.0,86382.0,0.88253]
[1765949759045,0.66868594,86383.0,86382.0,0.88453]
[1765949759847,0.00010594,86383.0,86382.0,0.88453]
[1765949760048,0.72626594,86383.0,86382.0,0.88653]
[1765949760357,0.00010594,86383.0,86382.0,0.88653]
[1765949760557,0.48742594,86383.0,86382.0,0.88653]
[1765949761259,0.72626594,86383.0,86382.0,0.88653]
[1765949761452,0.00010594,86383.0,86382.0,0.88653]
[1765949762655,0.34727594,86383.0,86382.0,0.88653]
[1765949763254,0.00010594,86383.0,86382.0,0.88653]
[1765949769360,0.00017359,86391.0,86390.0,0.70475]
[1765949769565,0.00017359,86391.0,86390.0,0.7163279]
[1765949770156,0.00017359,86391.0,86390.0,0.70475]
[1765949770355,0.35302359,86391.0,86390.0,0.70475]
[1765949770565,0.00017359,86391.0,86390.0,0.70675]
[1765949772768,0.68078359,86391.0,86390.0,0.70675]
[1765949774470,0.68078359,86391.0,86390.0,0.002]
[1765949777572,0.68061,86379.0,86378.0,0.00231542]
[1765949777869,1.76777,86379.0,86378.0,0.00231542]
[1765949778669,1.77077,86379.0,86378.0,0.00231542]
[1765949778870,1.77177,86379.0,86378.0,0.00231542]
[1765949779475,1.80042276,86379.0,86378.0,0.00231542]
[1765949779865,1.80042276,86379.0,86359.0,0.21187]
[1765949779866,0.68061,86375.0,86359.0,0.21187]
[1765949780167,0.68061,86360.0,86359.0,0.91662]
[1765949782278,0.3608,86364.0,86363.0,0.70475]
[1765949782466,1.11593248,86364.0,86363.0,0.70475]
[1765949783674,1.14550193,86364.0,86363.0,0.70475]
[1765949783975,0.00017369,86368.0,86367.0,0.716331]
[1765949784676,0.68061,86387.0,86386.0,0.70475]
[1765949784980,0.71025276,86387.0,86386.0,0.70475]
[1765949785170,0.02964276,86387.0,86386.0,0.7163284]
[1765949785369,0.35285,86395.0,86394.0,0.70475]
[1765949785575,1.40709,86395.0,86394.0,0.70475]
[1765949785777,1.40709,86395.0,86394.0,0.3508]
[1765949786376,0.68061,86391.0,86390.0,1.06555]
[1765949786580,0.68061,86391.0,86390.0,0.3608]
[1765949787480,0.68061,86391.0,86390.0,1.06555]
[1765949787676,0.68061,86391.0,86390.0,0.70475]
[1765949787872,0.68361,86391.0,86390.0,0.70475]
[1765949788073,0.68061,86387.0,86386.0,0.35097369]
[1765949788670,0.68061,86387.0,86386.0,0.70492369]
[1765949788871,0.68561,86391.0,86390.0,0.70475]
[1765949789071,1.41205,86391.0,86390.0,0.70475]
[1765949789271,1.41005,86391.0,86390.0,0.70475]
[1765949789785,0.68061,86387.0,86386.0,0.35097369]
[1765949790277,0.68261,86387.0,86386.0,0.70492369]
[1765949790483,1.40909,86387.0,86386.0,0.70492369]
[1765949790671,1.40709,86387.0,86386.0,0.00017369]
[1765949791685,1.40809,86387.0,86386.0,0.00017369]
[1765949791875,1.41009,86387.0,86386.0,0.00017369]
[1765949792588,1.41109,86387.0,86386.0,0.00017369]
[1765949792775,1.43931755,86387.0,86386.0,0.00017369]
[1765949793079,1.43931755,86387.0,86386.0,0.70492369]
[1765949793279,1.43731755,86387.0,86386.0,0.70492369]
[1765949793480,1.44031755,86387.0,86386.0,0.70492369]
[1765949793876,1.43731755,86387.0,86386.0,0.70492369]
[1765949794079,1.43831755,86387.0,86386.0,0.70492369]
[1765949794383,1.43631755,86387.0,86386.0,0.00017369]
[1765949794592,1.43931755,86387.0,86386.0,0.00017369]
[1765949794792,1.44031755,86387.0,86386.0,0.00017369]
[1765949795986,1.46587194,86387.0,86386.0,0.00017369]
[1765949796189,1.46887194,86387.0,86386.0,0.00017369]
[1765949796592,1.46587194,86387.0,86386.0,0.00017369]
[1765949796887,0.67478,86367.0,86366.0,1.05187]
[1765949797095,1.42981439,86367.0,86366.0,1.05187]
[1765949798194,1.42981439,86367.0,86366.0,1.05287]
[1765949798995,1.42981439,86367.0,86366.0,0.3618]
[1765949799196,1.42981439,86367.0,86366.0,1.05287]
[1765949799391,1.43081439,86367.0,86366.0,1.05287]
[1765949800392,1.46003851,86367.0,86366.0,1.05287]
[1765949800695,1.11354851,86367.0,86366.0,1.05287]
[1765949801097,0.78529851,86367.0,86366.0,1.05287]
[1765949801286,0.05877851,86367.0,86366.0,1.05287]
[1765949801599,0.62553851,86367.0,86366.0,1.05287]
[1765949801992,1.46007851,86367.0,86366.0,1.05287]
[1765949802500,1.46007851,86367.0,86366.0,0.3618]
[1765949802696,1.46007851,86367.0,86366.0,0.001]
[1765949803192,1.46007851,86367.0,86366.0,0.34834]
[1765949803392,1.46007851,86367.0,86366.0,0.001]
[1765949804201,1.46007851,86367.0,86358.0,0.36097369]
[1765949804401,0.67478,86359.0,86358.0,0.36097369]
[1765949804591,1.42985439,86359.0,86358.0,0.36097369]
[1765949805396,1.42985439,86359.0,86358.0,0.00017369]
[1765949806795,1.42985439,86359.0,86341.0,0.3608]
[1765949806796,0.67478,86342.0,86341.0,1.05187]
[1765949807007,1.43005439,86342.0,86341.0,1.05187]
[1765949807502,0.75527439,86342.0,86341.0,1.05187]
[1765949808004,1.08356439,86342.0,86341.0,1.05187]
[1765949809107,1.08356439,86342.0,86341.0,1.05387]
[1765949810296,1.08356439,86342.0,86341.0,1.05687]
[1765949810600,0.72668,86342.0,86341.0,1.05687]
[1765949810806,0.00017369,86350.0,86349.0,0.7026534]
[1765949811000,0.02868074,86350.0,86349.0,0.7026534]
[1765949811507,0.02946744,86358.0,86357.0,0.7026523]
[1765949811691,0.66677,86362.0,86361.0,0.69107]
[1765949811896,0.70328559,86362.0,86361.0,0.69107]
[1765949812196,0.02850559,86362.0,86361.0,0.69107]
[1765949812396,0.70328559,86362.0,86361.0,0.69107]
[1765949812592,0.67478,86358.0,86357.0,1.05187]
[1765949812907,0.70328538,86358.0,86357.0,0.69107]
[1765949813200,0.67478,86358.0,86357.0,0.69107]
[1765949813902,0.67478,86358.0,86355.0,0.3723826]
[1765949813903,0.32929,86362.0,86361.0,0.69107]
[1765949814104,0.02986479,86362.0,86361.0,0.69107]
[1765949814303,0.48258479,86362.0,86361.0,0.69107]